lending/lending_fUSD_20250114
["ID","MTS","AMOUNT","RATE_DAILY","PERIOD"]
[348853864,1736813437534,-500.0,9.89e-05,2]
[348853865,1736813437543,-500.0,9.89e-05,2]
[348853866,1736813437553,-612.35,9.89e-05,2]
[348853867,1736813437563,-500.0,9.89e-05,2]
[348853868,1736813437572,-500.0,9.89e-05,2]
[348853869,1736813437582,-500.0,9.89e-05,2]
[348853870,1736813437591,-500.0,9.89e-05,2]
[348853871,1736813437602,-500.0,9.89e-05,2]
[348853872,1736813437611,-1132.3,9.89e-05,2]
[348853873,1736813437622,-500.0,9.89e-05,2]
[348853874,1736813437631,-504.61,9.89e-05,2]
[348853875,1736813437642,-500.0,9.89e-05,2]
[348853876,1736813437659,-500.0,9.89e-05,2]
[348853877,1736813437671,-500.0,9.89e-05,2]
[348853878,1736813437682,-500.0,9.89e-05,2]
[348853879,1736813437698,-500.0,9.89e-05,2]
[348853880,1736813437710,-500.0,9.89e-05,2]
[348853881,1736813437719,-500.0,9.89e-05,2]
[348853882,1736813437729,-500.0,9.89e-05,2]
[348853883,1736813437740,-500.0,9.89e-05,2]
[348853884,1736813437749,-500.0,9.89e-05,2]
[348853885,1736813437759,-516.38843729,9.89e-05,2]
[348853886,1736813437770,-548.3,9.89e-05,2]
[348853887,1736813437779,-500.0,9.89e-05,2]
[348853888,1736813437788,-717.25,9.89e-05,2]
[348853889,1736813437798,-500.0,9.89e-05,2]
[348853890,1736813437808,-500.0,9.89e-05,2]
[348853891,1736813437817,-500.0,9.89e-05,2]
[348853892,1736813437827,-500.0,9.89e-05,2]
[348853893,1736813437837,-500.0,9.89e-05,2]
[348853894,1736813437846,-500.0,9.89e-05,2]
[348853895,1736813437856,-500.0,9.89e-05,2]
[348853896,1736813437865,-500.0,9.89e-05,2]
[348853897,1736813437874,-500.0,9.89e-05,2]
[348853898,1736813437885,-500.0,9.89e-05,2]
[348853899,1736813437895,-500.0,9.89e-05,2]
[348853900,1736813437904,-500.0,9.89e-05,2]
[348853901,1736813437915,-500.0,9.89e-05,2]
[348853902,1736813437924,-500.0,9.89e-05,2]
[348853903,1736813437934,-1717.38,9.89e-05,2]
[348853904,1736813437944,-500.0,9.89e-05,2]
[348853905,1736813437955,-500.0,9.89e-05,2]
[348853906,1736813437965,-326.14641374,9.89e-05,2]
[348853907,1736813437974,-500.0,9.89e-05,2]
[348853909,1736813437983,-500.0,9.89e-05,2]
[348853911,1736813437994,-500.0,9.89e-05,2]
[348853913,1736813438004,-593.73102833,9.89e-05,2]
[348853914,1736813438014,-500.0,9.89e-05,2]
[348853915,1736813438025,-500.0,9.89e-05,2]
[348853916,1736813438035,-500.0,9.89e-05,2]
[348853917,1736813438046,-982.92,9.89e-05,2]
[348853918,1736813438059,-500.0,9.89e-05,2]
[348853919,1736813438068,-794.18,9.89e-05,2]
[348853920,1736813438078,-500.0,9.89e-05,2]
[348853921,1736813438087,-195.75450171,9.891e-05,2]
[348853922,1736813438096,-500.0,9.891e-05,2]
[348853923,1736813438106,-502.30985891,9.891e-05,2]
[348853924,1736813438115,-500.0,9.891e-05,2]
[348853925,1736813438125,-502.49831916,9.891e-05,2]
[348853926,1736813438134,-501.61670896,9.891e-05,2]
[348853927,1736813438144,-500.0,9.891e-05,2]
[348853928,1736813438153,-500.0,9.891e-05,2]
[348853929,1736813438162,-637.28156648,9.891e-05,2]
[348853930,1736813438172,-500.0,9.891e-05,2]
[348853931,1736813438181,-501.44668442,9.891e-05,2]
[348853932,1736813438191,-539.97638807,9.891e-05,2]
[348853933,1736813438200,-527.07015604,9.891e-05,2]
[348853934,1736813438210,-500.0,9.891e-05,2]
[348853935,1736813438219,-500.0,9.891e-05,2]
[348853936,1736813438228,-500.0,9.891e-05,2]
[348853937,1736813438238,-500.0,9.891e-05,2]
[348853938,1736813438247,-500.0,9.891e-05,2]
[348853939,1736813438257,-500.0,9.891e-05,2]
[348853940,1736813438267,-500.0,9.891e-05,2]
[348853941,1736813438277,-500.0,9.891e-05,2]
[348853942,1736813438287,-500.0,9.891e-05,2]
[348853943,1736813438296,-500.0,9.891e-05,2]
[348853944,1736813438306,-500.0,9.891e-05,2]
[348853945,1736813438315,-433.64954282,9.891e-05,2]
[348853946,1736813438325,-500.0,9.891e-05,2]
[348853947,1736813438335,-500.0,9.891e-05,2]
[348853948,1736813438345,-500.0,9.891e-05,2]
[348853949,1736813438355,-500.0,9.891e-05,2]
[348853950,1736813438365,-500.0,9.891e-05,2]
[348853951,1736813438374,-500.0,9.891e-05,2]
[348853952,1736813438384,-500.0,9.891e-05,2]
[348853953,1736813438394,-500.0,9.891e-05,2]
[348853954,1736813438402,-500.0,9.891e-05,2]
[348853955,1736813438412,-500.0,9.891e-05,2]
[348853956,1736813438421,-500.0,9.891e-05,2]
[348853957,1736813438430,-500.0,9.891e-05,2]
[348853958,1736813438439,-500.0,9.891e-05,2]
[348853959,1736813438449,-500.0,9.891e-05,2]
[348853960,1736813438459,-500.0,9.891e-05,2]
[348853961,1736813438468,-500.0,9.891e-05,2]
[348853962,1736813438478,-500.0,9.891e-05,2]
[348853963,1736813438487,-157.61740855,9.891e-05,2]
[348853964,1736813438496,-504.75877877,9.891e-05,2]
[348853965,1736813438506,-500.0,9.891e-05,2]
[348853966,1736813438516,-429.36474537,9.891e-05,2]
[348853967,1736813438525,-500.0,9.891e-05,2]
[348853968,1736813438535,-500.0,9.891e-05,2]
[348853969,1736813438544,-500.0,9.891e-05,2]
[348853970,1736813438557,-500.0,9.891e-05,2]
[348853971,1736813438567,-500.0,9.891e-05,2]
[348853972,1736813438576,-500.0,9.891e-05,2]
[348853973,1736813438586,-500.0,9.891e-05,2]
[348853974,1736813438596,-500.0,9.891e-05,2]
[348853975,1736813438605,-500.0,9.891e-05,2]
[348853976,1736813438615,-500.0,9.891e-05,2]
[348853977,1736813438626,-500.0,9.891e-05,2]
[348853978,1736813438636,-500.0,9.891e-05,2]
[348853979,1736813438647,-500.0,9.891e-05,2]
[348853980,1736813438657,-500.0,9.891e-05,2]
[348853981,1736813438671,-500.0,9.891e-05,2]
[348853982,1736813438681,-500.0,9.891e-05,2]
[348853983,1736813438691,-500.0,9.891e-05,2]
[348853984,1736813438700,-500.0,9.891e-05,2]
[348853985,1736813438711,-500.0,9.891e-05,2]
[348853986,1736813438720,-500.0,9.891e-05,2]
[348853987,1736813438730,-500.0,9.891e-05,2]
[348853988,1736813438741,-500.0,9.891e-05,2]
[348853989,1736813438751,-500.0,9.891e-05,2]
[348853990,1736813438761,-500.0,9.891e-05,2]
[348853992,1736813438772,-500.0,9.891e-05,2]
[348853993,1736813438781,-500.0,9.891e-05,2]
[348853994,1736813438790,-500.0,9.891e-05,2]
[348853995,1736813438800,-500.0,9.891e-05,2]
[348853996,1736813438809,-500.0,9.891e-05,2]
[348853997,1736813438818,-500.0,9.891e-05,2]
[348853998,1736813438828,-500.0,9.891e-05,2]
[348853999,1736813438837,-500.0,9.891e-05,2]
[348854000,1736813438846,-500.0,9.891e-05,2]
[348854001,1736813438855,-500.0,9.891e-05,2]
[348854002,1736813438865,-500.0,9.891e-05,2]
[348854003,1736813438874,-500.0,9.891e-05,2]
[348854004,1736813438884,-500.0,9.891e-05,2]
[348854005,1736813438893,-500.0,9.891e-05,2]
[348854006,1736813438903,-500.0,9.891e-05,2]
[348854007,1736813438912,-500.0,9.891e-05,2]
[348854008,1736813438922,-500.0,9.891e-05,2]
[348854009,1736813438931,-500.0,9.891e-05,2]
[348854010,1736813438940,-500.0,9.891e-05,2]
[348854011,1736813438950,-500.0,9.891e-05,2]
[348854012,1736813438959,-1424.8,9.891e-05,2]
[348854013,1736813438968,-500.0,9.891e-05,2]
[348854014,1736813438980,-500.0,9.891e-05,2]
[348854015,1736813438989,-500.0,9.891e-05,2]
[348854016,1736813438999,-500.0,9.891e-05,2]
[348854017,1736813439008,-295.07081387,9.891e-05,2]
[348854018,1736813439020,-500.0,9.891e-05,2]
[348854019,1736813439030,-500.0,9.891e-05,2]
[348854020,1736813439230,-500.0,9.891e-05,2]
[348854021,1736813439240,-1338.28,9.891e-05,2]
[348854022,1736813439250,-500.0,9.891e-05,2]
[348854023,1736813439260,-500.0,9.891e-05,2]
[348854024,1736813439270,-500.0,9.891e-05,2]
[348854025,1736813439279,-500.0,9.891e-05,2]
[348854026,1736813439289,-500.0,9.891e-05,2]
[348854027,1736813439299,-500.0,9.891e-05,2]
[348854028,1736813439309,-500.0,9.891e-05,2]
[348854029,1736813439319,-500.0,9.891e-05,2]
[348854030,1736813439328,-1698.62,9.891e-05,2]
[348854031,1736813439338,-500.0,9.891e-05,2]
[348854032,1736813439347,-500.0,9.891e-05,2]
[348854033,1736813439357,-500.0,9.891e-05,2]
[348854034,1736813439366,-500.0,9.891e-05,2]
[348854035,1736813439376,-500.0,9.891e-05,2]
[348854036,1736813439385,-500.0,9.891e-05,2]
[348854037,1736813439395,-500.0,9.891e-05,2]
[348854038,1736813439405,-500.0,9.891e-05,2]
[348854039,1736813439414,-500.0,9.891e-05,2]
[348854040,1736813439424,-500.0,9.891e-05,2]
[348854041,1736813439434,-872.08,9.891e-05,2]
[348854042,1736813439443,-500.0,9.891e-05,2]
[348854043,1736813439453,-500.0,9.891e-05,2]
[348854044,1736813439463,-500.0,9.891e-05,2]
[348854045,1736813439472,-500.0,9.891e-05,2]
[348854046,1736813439482,-500.0,9.891e-05,2]
[348854047,1736813439491,-899.61,9.891e-05,2]
[348854048,1736813439501,-1111.45,9.891e-05,2]
[348854049,1736813439510,-500.0,9.891e-05,2]
[348854050,1736813439520,-500.0,9.891e-05,2]
[348854051,1736813439529,-500.0,9.891e-05,2]
[348854052,1736813439539,-500.0,9.891e-05,2]
[348854053,1736813439548,-500.0,9.891e-05,2]
[348854054,1736813439557,-500.0,9.891e-05,2]
[348854055,1736813439566,-500.0,9.891e-05,2]
[348854056,1736813439575,-500.0,9.891e-05,2]
[348854057,1736813439585,-500.0,9.891e-05,2]
[348854058,1736813439594,-500.0,9.891e-05,2]
[348854059,1736813439603,-500.0,9.891e-05,2]
[348854060,1736813439613,-500.0,9.891e-05,2]
[348854061,1736813439622,-500.0,9.891e-05,2]
[348854062,1736813439632,-500.0,9.891e-05,2]
[348854063,1736813439642,-500.0,9.891e-05,2]
[348854064,1736813439652,-500.0,9.891e-05,2]
[348854065,1736813439664,-500.0,9.891e-05,2]
[348854066,1736813439678,-574.60322273,9.891e-05,2]
[348854067,1736813439687,-500.0,9.891e-05,2]
[348854068,1736813439696,-500.0,9.891e-05,2]
[348854069,1736813439708,-500.0,9.891e-05,2]
[348854070,1736813439718,-500.0,9.891e-05,2]
[348854071,1736813439727,-500.0,9.891e-05,2]
[348854072,1736813439737,-500.0,9.891e-05,2]
[348854073,1736813439746,-844.07,9.891e-05,2]
[348854074,1736813439756,-500.0,9.891e-05,2]
[348854075,1736813439766,-500.0,9.891e-05,2]
[348854076,1736813439775,-500.0,9.891e-05,2]
[348854077,1736813439784,-500.0,9.891e-05,2]
[348854078,1736813439793,-500.0,9.891e-05,2]
[348854079,1736813439803,-500.0,9.891e-05,2]
[348854080,1736813439812,-500.0,9.891e-05,2]
[348854081,1736813439822,-500.0,9.891e-05,2]
[348854082,1736813439832,-500.0,9.891e-05,2]
[348854083,1736813439841,-500.0,9.891e-05,2]
[348854084,1736813439851,-500.0,9.891e-05,2]
[348854085,1736813439860,-2315.16,9.891e-05,2]
[348854086,1736813439869,-500.0,9.891e-05,2]
[348854087,1736813439878,-500.0,9.891e-05,2]
[348854088,1736813439887,-500.0,9.891e-05,2]
[348854089,1736813439897,-500.0,9.891e-05,2]
[348854090,1736813439906,-500.0,9.891e-05,2]
[348854091,1736813439915,-500.0,9.891e-05,2]
[348854092,1736813439925,-500.0,9.891e-05,2]
[348854093,1736813439934,-500.0,9.891e-05,2]
[348854094,1736813439944,-500.0,9.891e-05,2]
[348854095,1736813439953,-500.0,9.891e-05,2]
[348854096,1736813439963,-500.0,9.891e-05,2]
[348854097,1736813439972,-500.0,9.891e-05,2]
[348854098,1736813439981,-510.2,9.891e-05,2]
[348854100,1736813439991,-500.0,9.891e-05,2]
[348854102,1736813440001,-1235.99,9.891e-05,2]
[348854104,1736813440010,-500.0,9.891e-05,2]
[348854105,1736813440020,-500.0,9.891e-05,2]
[348854107,1736813440030,-500.0,9.891e-05,2]
[348854109,1736813440039,-500.0,9.891e-05,2]
[348854110,1736813440049,-500.0,9.891e-05,2]
[348854111,1736813440060,-500.0,9.891e-05,2]
[348854112,1736813440070,-500.0,9.891e-05,2]
[348854113,1736813440080,-208.01729238,9.891e-05,2]
[348854114,1736813440090,-500.0,9.891e-05,2]
[348854115,1736813440100,-292.7406841,9.891e-05,2]
[348854116,1736813440110,-500.0,9.891e-05,2]
[348854117,1736813440120,-500.0,9.891e-05,2]
[348854118,1736813440130,-500.0,9.891e-05,2]
[348854119,1736813440140,-500.0,9.891e-05,2]
[348854120,1736813440150,-2771.22,9.891e-05,2]
[348854121,1736813440160,-500.0,9.891e-05,2]
[348854122,1736813440170,-500.0,9.891e-05,2]
[348854123,1736813440180,-500.0,9.891e-05,2]
[348854124,1736813440190,-500.0,9.891e-05,2]
[348854125,1736813440199,-500.0,9.891e-05,2]
[348854127,1736813440209,-150.0,9.891e-05,2]
[348854128,1736813440218,-500.0,9.891e-05,2]
[348854129,1736813440227,-500.0,9.891e-05,2]
[348854130,1736813440237,-500.0,9.891e-05,2]
[348854131,1736813440246,-2285.08,9.891e-05,2]
[348854132,1736813440256,-500.0,9.891e-05,2]
[348854133,1736813440266,-500.0,9.891e-05,2]
[348854134,1736813440276,-500.0,9.891e-05,2]
[348854135,1736813440286,-500.0,9.891e-05,2]
[348854136,1736813440295,-500.0,9.891e-05,2]
[348854137,1736813440305,-500.0,9.891e-05,2]
[348854138,1736813440314,-586.10351996,9.891e-05,2]
[348854139,1736813440324,-500.0,9.891e-05,2]
[348854140,1736813440334,-500.0,9.891e-05,2]
[348854141,1736813440344,-500.0,9.891e-05,2]
[348854142,1736813440353,-500.0,9.891e-05,2]
[348854143,1736813440363,-500.0,9.891e-05,2]
[348854144,1736813440372,-500.0,9.891e-05,2]
[348854145,1736813440382,-500.0,9.891e-05,2]
[348854146,1736813440391,-500.0,9.891e-05,2]
[348854147,1736813440401,-500.0,9.891e-05,2]
[348854148,1736813440411,-500.0,9.891e-05,2]
[348854149,1736813440421,-500.0,9.891e-05,2]
[348854150,1736813440430,-500.0,9.891e-05,2]
[348854151,1736813440440,-4077.87,9.891e-05,2]
[348854152,1736813440450,-544.09567914,9.891e-05,2]
[348854153,1736813440461,-500.0,9.891e-05,2]
[348854154,1736813440471,-500.0,9.891e-05,2]
[348854155,1736813440481,-500.0,9.891e-05,2]
[348854156,1736813440493,-500.0,9.891e-05,2]
[348854157,1736813440503,-500.0,9.891e-05,2]
[348854158,1736813440514,-1351.0245729,9.891e-05,2]
[348854160,1736813440825,-231.7654271,9.891e-05,2]
[348854161,1736813440835,-500.0,9.891e-05,2]
[348854162,1736813440844,-282.3345729,9.891e-05,2]
[348854163,1736813440876,-217.6654271,9.891e-05,2]
[348854164,1736813440886,-927.58,9.891e-05,2]
[348854165,1736813440895,-500.0,9.891e-05,2]
[348854167,1736813440905,-1020.03,9.891e-05,2]
[348854168,1736813440914,-1571.74,9.891e-05,2]
[348854171,1736813440924,-500.0,9.891e-05,2]
[348854172,1736813440935,-874.03,9.891e-05,2]
[348854173,1736813440945,-1155.59,9.891e-05,2]
[348854174,1736813440959,-3513.85,9.891e-05,2]
[348854175,1736813440970,-960.73,9.891e-05,2]
[348854176,1736813440979,-1562.12,9.891e-05,2]
[348854177,1736813440989,-1135.54,9.891e-05,2]
[348854178,1736813440998,-2474.94,9.891e-05,2]
[348854179,1736813441008,-795.63,9.891e-05,2]
[348854180,1736813441017,-1486.51,9.891e-05,2]
[348854181,1736813441027,-1857.66,9.891e-05,2]
[348854182,1736813441036,-500.0,9.891e-05,2]
[348854183,1736813441046,-1256.09,9.891e-05,2]
[348854184,1736813441056,-945.64,9.891e-05,2]
[348854185,1736813441065,-1386.07,9.891e-05,2]
[348854186,1736813441075,-1559.89,9.891e-05,2]
[348854187,1736813441085,-1502.88,9.891e-05,2]
[348854188,1736813441095,-1533.92,9.891e-05,2]
[348854189,1736813441104,-1591.81,9.892e-05,2]
[348854190,1736813441114,-1907.11,9.892e-05,2]
[348854191,1736813441125,-3426.7,9.892e-05,2]
[348854192,1736813441134,-9032.72,9.892e-05,2]
[348854193,1736813441144,-1259.65,9.892e-05,2]
[348854194,1736813441154,-854.67,9.892e-05,2]
[348854195,1736813441165,-1982.63,9.892e-05,2]
[348854196,1736813441176,-500.0,9.892e-05,2]
[348854197,1736813441198,-642.16,9.892e-05,2]
[348854198,1736813441210,-1342.58,9.892e-05,2]
[348854199,1736813441220,-1000.0,9.892e-05,2]
[348854200,1736813441229,-1515.89,9.892e-05,2]
[348854201,1736813441240,-933.48,9.892e-05,2]
[348854202,1736813441249,-500.0,9.893e-05,2]
[348854203,1736813441259,-2091.52,9.893e-05,2]
[348854204,1736813441270,-1743.58,9.893e-05,2]
[348854205,1736813441280,-1700.0,9.9e-05,3]
[348854206,1736813441290,-160.0,9.973e-05,2]
[348854207,1736813441300,-500.0,9.973e-05,2]
[348854208,1736813441309,-2979.691,9.998e-05,2]
[348854209,1736813441318,-163.705,9.999e-05,2]
[348854210,1736813441327,-500.0,9.999e-05,2]
[348854211,1736813441337,-500.0,9.999e-05,2]
[348854212,1736813441347,-500.0,9.999e-05,2]
[348854213,1736813441357,-500.0,9.999e-05,2]
[348854214,1736813441367,-500.0,9.999e-05,2]
[348854215,1736813441376,-500.0,9.999e-05,2]
[348854216,1736813441386,-500.0,9.999e-05,2]
[348854217,1736813441395,-500.0,9.999e-05,2]
[348854218,1736813441404,-500.0,9.999e-05,2]
[348854219,1736813441413,-500.0,9.999e-05,2]
[348854220,1736813441423,-500.0,9.999e-05,2]
[348854221,1736813441433,-500.0,9.999e-05,2]
[348854222,1736813441442,-500.0,9.999e-05,2]
[348854223,1736813441452,-500.0,9.999e-05,2]
[348854224,1736813441462,-500.0,9.999e-05,2]
[348854225,1736813441471,-192.91,9.999e-05,2]
[348854226,1736813441482,-500.0,9.999e-05,2]
[348854227,1736813441548,-500.0,9.999e-05,2]
[348854228,1736813441558,-500.0,9.999e-05,2]
[348854229,1736813441569,-500.0,9.999e-05,2]
[348854230,1736813441580,-500.0,9.999e-05,2]
[348854231,1736813441590,-434.06754812,9.999e-05,2]
[348854232,1736813441601,-500.0,9.999e-05,2]
[348854233,1736813441611,-475.83947211,9.999e-05,2]
[348854234,1736813441621,-2211.26,9.999e-05,2]
[348854235,1736813441631,-1104.0,0.0001,2]
[348854236,1736813441641,-537621.67566937,0.0001,2]
[348854237,1736813441653,-3305.21696341,0.0001,2]
[348854238,1736813441673,-43221.55884758,0.0001,2]
[348854239,1736813441685,-19275.47053154,0.0001,2]
[348854240,1736813441696,-10468.8,0.0001,2]
[348854241,1736813441709,-2097.72946846,0.0001,2]
[348854242,1736813441724,-3700.0,0.0001,2]
[348854243,1736813441759,-25597.31684949,0.0001,2]
[348854244,1736813442602,-500.0,9.89e-05,2]
[348854245,1736813442612,-2630721.60783689,0.0001,2]
[348854246,1736813442639,-3809.58293827,0.0001,2]
[348854247,1736813442651,-410.97167095,0.0001,2]
[348854248,1736813442666,-13994.37548527,0.0001,2]
[348854249,1736813442677,-18616.02891533,0.0001,2]
[348854250,1736813442690,-1378.92299365,0.0001,2]
[348854251,1736813442703,-5511.78573928,0.0001,2]
[348854252,1736813442902,-260.51,0.0001,2]
[348854253,1736813442914,-2038.6,0.0001,2]
[348854254,1736813442935,-20057.72093807,0.0001,2]
[348854255,1736813442947,-1000.0,0.0001,2]
[348854256,1736813442958,-3500.02531907,0.0001,2]
[348854257,1736813442977,-1419.99639479,0.0001,2]
[348854258,1736813442988,-6697.51771957,0.0001,2]
[348854259,1736813443000,-1399.79399091,0.0001,2]
[348854260,1736813443012,-300.0,0.0001,2]
[348854261,1736813443024,-2306.41831059,0.0001,2]
[348854262,1736813443036,-2546.11989511,0.0001,2]
[348854266,1736813443593,-35678.99311828,0.0001,2]
[348854267,1736813443605,-2027.59999975,0.0001,2]
[348854268,1736813443624,-2010.44552096,0.0001,2]
[348854269,1736813443636,-19591.55653594,0.0001,2]
[348854270,1736813443649,-543.24000001,0.0001,2]
[348854271,1736813443667,-675.424955,0.0001,2]
[348854272,1736813443679,-17651.118887,0.0001,2]
[348854273,1736813443692,-26044.87827141,0.0001,2]
[348854274,1736813443711,-2734.9,0.0001,2]
[348854275,1736813443722,-61220.92629919,0.0001,2]
[348854277,1736813443767,-365.545,0.0001,2]
[348854278,1736813443779,-471.49600013,0.0001,2]
[348854282,1736813446251,-500.0,9.89e-05,2]
[348854283,1736813446263,-116.0,0.0001,2]
[348854284,1736813446275,-25340.56728321,0.0001,2]
[348854285,1736813446409,-957.40000005,9.89e-05,2]
[348854286,1736813446421,-1014.65,9.89e-05,2]
[348854292,1736813447731,-373.46775991,9.89e-05,2]
[348854293,1736813447745,-344.94224004,9.89e-05,2]
[348854294,1736813447756,-3616.92869037,0.0001,2]
[348854295,1736813577793,709.77,8.219e-05,2]
[348854296,1736813591771,500.0,0.00022429,120]
[348854297,1736813598484,2000.0,0.00022429,120]
[348854298,1736813605210,500.0,0.00022429,120]
[348854299,1736813630076,200.0,0.00022429,120]
[348854300,1736813786516,233.0,0.00023,120]
[348854301,1736813790818,150.0,0.00022678,120]
[348854302,1736813863419,151.011409,0.00023,120]
[348854308,1736813954967,500.0,0.00023,120]
[348854316,1736814192642,500.0,0.00022184,120]
[348854317,1736814197963,2000.0,0.00022732,120]
[348854318,1736814227418,200.0,0.00022296,120]
[348854332,1736814475442,674.28,8.219e-05,2]
[348854334,1736814511701,4216.0,0.0002,30]
[348854347,1736814575438,5265.0,0.00023,120]
[348854371,1736814632492,-250.0,8.751e-05,2]
[348854372,1736814632502,-419.27662058,8.751e-05,2]
[348854374,1736814632549,-580.72337942,8.751e-05,2]
[348854375,1736814632559,-449.48,8.848e-05,2]
[348854376,1736814632569,-213.29,8.866e-05,2]
[348854377,1736814632579,-7831.56293251,8.912e-05,2]
[348854378,1736814632591,-634.83877438,8.912e-05,2]
[348854379,1736814632605,-424.28221804,8.912e-05,2]
[348854380,1736814632616,-1203.62598944,8.912e-05,2]
[348854381,1736814632687,-457.0237451,8.912e-05,2]
[348854382,1736814632717,-10157.0,8.912e-05,2]
[348854383,1736814632775,-3191.66634053,8.912e-05,2]
[348854384,1736814632785,-250.0,9.02e-05,2]
[348854385,1736814632795,-250.0,9.034e-05,2]
[348854386,1736814632805,-376.71,9.077e-05,2]
[348854387,1736814632814,-1980.0,9.309e-05,2]
[348854388,1736814632823,-150.0,9.499e-05,2]
[348854389,1736814632832,-179.122,9.5e-05,2]
[348854390,1736814632844,-5754.39,9.5e-05,2]
[348854391,1736814632853,-999.99,9.5e-05,2]
[348854392,1736814632862,-150.99,9.5e-05,2]
[348854393,1736814632871,-150.0,9.548e-05,2]
[348854394,1736814632880,-2500.0,9.6e-05,2]
[348854395,1736814632889,-150.99,9.6e-05,2]
[348854396,1736814632898,-6804.02,9.6e-05,2]
[348854397,1736814632906,-311.6239,9.69e-05,2]
[348854398,1736814632915,-569.0547,9.69e-05,2]
[348854399,1736814632924,-299.99,9.69e-05,2]
[348854400,1736814632932,-1379.2,9.69e-05,2]
[348854401,1736814632941,-3722.3541,9.69e-05,2]
[348854402,1736814632950,-2500.0,9.69e-05,2]
[348854403,1736814632959,-437.83,9.7e-05,2]
[348854404,1736814632968,-772.01,9.7e-05,2]
[348854405,1736814632977,-7420.32,9.7e-05,2]
[348854406,1736814632986,-1000.0,9.787e-05,2]
[348854407,1736814632995,-682.9739,9.789e-05,2]
[348854408,1736814633004,-141057.98,9.79e-05,2]
[348854409,1736814633013,-1000.0,9.79e-05,2]
[348854410,1736814633023,-5000.0,9.79e-05,2]
[348854411,1736814633032,-9500.0,9.8e-05,2]
[348854412,1736814633042,-500.0,9.805e-05,2]
[348854413,1736814633051,-2257.96,9.805e-05,2]
[348854414,1736814633060,-3069.82,9.805e-05,2]
[348854415,1736814633069,-1782.32,9.805e-05,2]
[348854416,1736814633078,-500.0,9.805e-05,2]
[348854417,1736814633087,-1136.8,9.805e-05,2]
[348854418,1736814633097,-2740.96,9.805e-05,2]
[348854419,1736814633108,-934.96,9.805e-05,2]
[348854420,1736814633118,-500.0,9.805e-05,2]
[348854421,1736814633128,-500.0,9.805e-05,2]
[348854422,1736814633137,-870.97,9.805e-05,2]
[348854423,1736814633147,-878.91,9.805e-05,2]
[348854424,1736814633157,-500.0,9.805e-05,2]
[348854425,1736814633166,-500.0,9.805e-05,2]
[348854426,1736814633176,-500.0,9.805e-05,2]
[348854427,1736814633186,-829.38,9.805e-05,2]
[348854428,1736814633195,-500.0,9.805e-05,2]
[348854429,1736814633206,-500.0,9.805e-05,2]
[348854430,1736814633215,-500.0,9.805e-05,2]
[348854431,1736814633224,-500.0,9.805e-05,2]
[348854432,1736814633234,-500.0,9.805e-05,2]
[348854433,1736814633243,-500.0,9.805e-05,2]
[348854434,1736814633253,-500.0,9.805e-05,2]
[348854435,1736814633262,-500.0,9.805e-05,2]
[348854436,1736814633272,-500.0,9.805e-05,2]
[348854437,1736814633282,-500.0,9.805e-05,2]
[348854438,1736814633291,-500.0,9.805e-05,2]
[348854439,1736814633301,-500.0,9.805e-05,2]
[348854440,1736814633311,-17077.1313855,9.806e-05,2]
[348854441,1736814633321,-1000.0,9.845e-05,2]
[348854443,1736814633331,-500.4,9.886e-05,2]
[348854445,1736814633340,-1711.53,9.886e-05,2]
[348854447,1736814633351,-500.0,9.886e-05,2]
[348854449,1736814633361,-847.64,9.886e-05,2]
[348854451,1736814633372,-500.0,9.887e-05,2]
[348854453,1736814633382,-500.0,9.887e-05,2]
[348854455,1736814633391,-500.0,9.887e-05,2]
[348854457,1736814633401,-500.0,9.887e-05,2]
[348854459,1736814633411,-589.27,9.887e-05,2]
[348854461,1736814633421,-500.0,9.887e-05,2]